bitfinex/quotes_SOLUSD_20240708
["timestamp","ask_amount","ask_price","bid_price","bid_amount"]
[1720401515770,100.0,129.34,129.22,62.7718]
[1720401515954,100.0,129.34,129.23,5.4166]
[1720401516160,0.8490908,129.35,129.25,5.4158]
[1720401516388,0.8490908,129.35,129.23,23.34]
[1720401516589,0.8490908,129.35,129.22,57.3548]
[1720401516590,0.8490908,129.35,129.25,23.34]
[1720401516787,0.8490908,129.35,129.29,50.76]
[1720401517095,0.8490908,129.35,129.3,0.17]
[1720401517307,0.8490908,129.35,129.3,20.17]
[1720401517785,0.8490908,129.35,129.3,25.5833]
[1720401518094,0.8490908,129.35,129.3,20.17]
[1720401518395,0.8490908,129.35,129.3,20.0]
[1720401518987,0.8490908,129.48,129.3,20.0]
[1720401518988,100.0,129.45,129.33,53.3029]
[1720401519188,0.8490908,129.48,129.33,53.3029]
[1720401519189,0.8490908,129.48,129.38,5.4103]
[1720401519371,0.8490908,129.48,129.39,20.0]
[1720401519577,100.8490908,129.48,129.39,20.0]
[1720401519777,100.0,129.47,129.4,0.17]
[1720401520203,100.0,129.47,129.39,0.17]
[1720401520382,100.0,129.47,129.38,20.0]
[1720401520585,0.8490908,129.48,129.38,20.0]
[1720401520989,100.0,129.47,129.38,20.0]
[1720401521498,0.8490908,129.48,129.38,20.0]
[1720401521808,100.0,129.47,129.38,20.0]
[1720401521973,0.8490908,129.48,129.39,0.17]
[1720401522179,100.0,129.47,129.38,20.0]
[1720401522505,100.0,129.44,129.38,20.0]
[1720401522871,100.0,129.46,129.38,20.0]
[1720401523077,0.8490908,129.48,129.38,20.0]
[1720401523297,100.8490908,129.48,129.37,50.76]
[1720401523600,100.8490908,129.48,129.33,53.3029]
[1720401523601,100.0,129.45,129.33,53.3029]
[1720401523803,100.0,129.43,129.33,50.76]
[1720401523985,100.0,129.43,129.29,74.1]
[1720401524188,100.0,129.43,129.29,106.9341]
[1720401524389,100.0,129.46,129.29,101.52]
[1720401524703,0.8490908,129.48,129.37,50.76]
[1720401525398,0.8490908,129.48,129.38,20.0]
[1720401525608,0.8490908,129.48,129.39,0.17]
[1720401526004,100.0,129.47,129.38,20.0]
[1720401526193,0.8490908,129.48,129.38,20.0]
[1720401526378,0.8490908,129.48,129.39,0.17]
[1720401527487,100.8490908,129.48,129.39,0.17]
[1720401527675,0.8490908,129.48,129.39,0.17]
[1720401528101,100.8490908,129.48,129.38,20.0]
[1720401528293,0.8490908,129.48,129.38,20.0]
[1720401528482,0.17,129.47,129.37,50.76]
[1720401528899,100.17,129.47,129.37,50.76]
[1720401529090,0.17,129.47,129.37,50.76]
[1720401529489,100.17,129.47,129.33,50.76]
[1720401529710,0.17,129.47,129.29,50.76]
[1720401529898,100.0,129.45,129.3,5.4137]
[1720401530104,0.17,129.44,129.29,56.1741]
[1720401530399,0.17,129.47,129.3,5.4137]
[1720401530605,0.17,129.47,129.29,50.76]
[1720401530814,100.0,129.45,129.29,50.76]
[1720401531017,0.17,129.44,129.29,50.76]
[1720401532387,100.0,129.43,129.29,50.76]
[1720401532607,0.17,129.42,129.29,50.76]
[1720401532817,15.17,129.44,129.27,6.2867]
[1720401533027,100.0,129.39,129.22,50.76]
[1720401533324,100.0,129.37,129.22,50.76]
[1720401533520,0.17,129.36,129.22,50.76]
[1720401534789,100.0,129.35,129.22,50.76]
[1720401534987,0.17,129.34,129.22,50.76]
[1720401535222,100.0,129.34,129.17,50.76]
[1720401535388,0.17,129.33,129.17,50.76]
[1720401535594,100.0,129.31,129.17,50.76]
[1720401535902,0.17,129.3,129.17,50.76]
[1720401536092,100.0,129.29,129.17,50.76]
[1720401536292,0.17,129.28,129.17,50.76]
[1720401536488,0.17,129.3,129.17,50.76]
[1720401536704,0.17,129.3,129.16,6.6023]
[1720401536705,100.0,129.27,129.16,6.6023]
[1720401536923,0.17,129.28,129.16,6.6023]
[1720401537599,100.0,129.25,129.13,50.76]
[1720401538411,100.0,129.27,129.13,56.1806]
[1720401538629,100.0,129.31,129.17,50.76]
[1720401538912,100.0,129.31,129.18,5.5886]
[1720401539111,115.6123,129.36,129.21,50.76]
[1720401539288,15.6123,129.36,129.22,26.39]
[1720401539490,100.0,129.33,129.22,26.39]
[1720401540495,100.0,129.35,129.22,26.39]
[1720401540803,115.6123,129.36,129.22,26.39]
[1720401541098,15.6123,129.36,129.22,20.0]
[1720401541301,115.6123,129.36,129.22,25.4167]
[1720401541691,15.6123,129.36,129.22,20.0]
[1720401541913,100.0,129.32,129.22,20.0]
[1720401542289,100.0,129.28,129.18,6.5309]
[1720401542604,100.0,129.28,129.15,50.76]
[1720401542994,15.6123,129.36,129.19,50.76]
[1720401543309,100.0,129.31,129.19,50.76]
[1720401543703,0.17,129.32,129.13,6.5309]
[1720401543704,100.0,129.27,129.13,6.5309]
[1720401543913,100.0,129.27,129.15,74.1]
[1720401544131,349.54628088,129.5,129.23,50.76]
[1720401544132,100.0,129.35,129.23,50.76]
[1720401544435,100.0,129.39,129.24,29.6548]
[1720401544589,21.4909,129.42,129.28,74.1]
[1720401544590,100.0,129.42,129.28,74.1]
[1720401544791,100.0,129.42,129.3,5.4137]
[1720401545023,115.3908,129.5,129.32,74.1]
[1720401545196,100.0,129.5,129.38,5.4103]
[1720401545504,100.0,129.5,129.39,20.17]
[1720401545819,100.8490908,129.48,129.39,20.17]
[1720401546026,0.8490908,129.48,129.39,0.17]
[1720401546236,0.8490908,129.48,129.38,0.17]
[1720401548802,0.8490908,129.48,129.4,50.76]
[1720401549002,0.8490908,129.48,129.38,23.51]
[1720401549003,0.8490908,129.48,129.44,50.76]
[1720401549207,0.8490908,129.48,129.45,20.17]
[1720401549928,100.0,129.59,129.47,52.4541]
[1720401550114,100.0,129.59,129.51,50.76]
[1720401550319,100.0,129.59,129.52,20.0]
[1720401550512,100.0,129.59,129.48,0.17]
[1720401550720,100.0,129.55,129.48,20.0]
[1720401550906,100.0,129.56,129.48,20.0]
[1720401551107,100.0,129.52,129.41,1.6941]
[1720401551505,100.0,129.5,129.41,1.6941]
[1720401551711,100.0,129.48,129.36,50.76]
[1720401552036,100.0,129.44,129.35,6.1518]
[1720401552332,16.5364,129.49,129.28,6.1518]
[1720401552333,100.0,129.39,129.28,6.1518]
[1720401552638,100.0,129.39,129.26,50.76]
[1720401552816,0.17,129.38,129.26,50.76]
[1720401553012,100.0,129.33,129.26,50.76]
[1720401553226,100.17,129.38,129.26,50.76]
[1720401553434,100.0,129.36,129.26,50.76]
[1720401553817,0.17,129.35,129.23,6.553]
[1720401554216,0.17,129.35,129.22,50.76]
[1720401554541,100.0,129.3,129.22,50.76]
[1720401555131,0.17,129.35,129.22,50.76]
[1720401555337,100.0,129.36,129.22,50.76]
[1720401555513,16.2162,129.44,129.26,50.76]
[1720401555831,100.0,129.33,129.22,50.76]
[1720401556047,100.0,129.38,129.22,50.76]
[1720401556224,100.0,129.36,129.22,50.76]
[1720401556417,100.0,129.39,129.29,50.76]
[1720401556845,100.0,129.45,129.33,56.1724]
[1720401557144,100.0,129.5,129.37,50.76]
[1720401557370,100.0,129.5,129.38,20.17]
[1720401557523,100.0,129.46,129.38,20.0]
[1720401557727,16.2162,129.52,129.38,20.0]
[1720401557728,100.0,129.48,129.38,20.0]
[1720401557939,100.0,129.48,129.39,0.17]
[1720401558237,100.0,129.51,129.38,20.17]
[1720401558411,16.2162,129.6,129.38,20.0]
[1720401558412,100.0,129.5,129.38,20.0]
[1720401558614,100.0,129.44,129.29,6.1785]
[1720401558829,16.2162,129.47,129.31,50.76]
[1720401559051,100.0,129.41,129.31,50.76]
[1720401559727,16.2162,129.47,129.31,50.76]
[1720401559932,100.17,129.4,129.27,50.76]
[1720401560141,100.0,129.38,129.27,50.76]
[1720401560647,100.0,129.38,129.23,6.1785]
[1720401560847,0.17,129.37,129.22,50.76]
[1720401561225,100.0,129.31,129.22,50.76]
[1720401562155,100.0,129.31,129.23,1.54533523]
[1720401562448,100.0,129.31,129.22,50.76]
[1720401562656,100.0,129.3,129.17,6.1785]
[1720401562826,0.17,129.32,129.17,6.1785]
[1720401562827,100.0,129.28,129.17,6.1785]
[1720401563028,100.0,129.26,129.17,6.1785]
[1720401563556,0.17,129.32,129.15,51.6090908]
[1720401563557,100.0,129.24,129.15,51.6090908]
[1720401563765,100.0,129.26,129.15,51.6090908]
[1720401564056,0.17,129.27,129.15,51.6090908]
[1720401564057,100.0,129.24,129.15,51.6090908]
[1720401564258,100.0,129.26,129.15,51.6090908]
[1720401564453,100.0,129.24,129.15,51.6090908]
[1720401564633,100.0,129.21,129.15,0.8490908]
[1720401564826,100.17,129.2,129.15,0.8490908]
[1720401565037,100.0,129.2,129.15,0.8490908]
[1720401565241,100.17,129.22,129.15,0.8490908]
[1720401565434,100.0,129.21,129.15,0.8490908]
[1720401565640,0.17,129.2,129.15,0.8490908]
[1720401565850,100.0,129.19,129.15,0.8490908]
[1720401566158,100.0,129.23,129.15,0.8490908]
[1720401566355,100.0,129.27,129.15,0.8490908]
[1720401566659,100.0,129.24,129.15,0.8490908]
[1720401566848,100.0,129.22,129.15,0.8490908]
[1720401567030,100.0,129.26,129.15,0.8490908]
[1720401567234,100.0,129.24,129.15,0.8490908]
[1720401567552,100.0,129.24,129.16,0.17]
[1720401567728,100.0,129.26,129.16,0.17]
[1720401568155,100.0,129.27,129.17,5.4191]
[1720401568357,100.0,129.32,129.18,20.17]
[1720401568749,15.0,129.41,129.18,20.17]
[1720401568957,100.0,129.31,129.18,20.17]
[1720401569143,100.0,129.29,129.18,0.17]
[1720401569341,100.0,129.29,129.19,20.0]
[1720401569651,310.86,129.43,129.21,5.4174]
[1720401569652,100.0,129.33,129.21,5.4174]
[1720401569853,100.0,129.39,129.24,50.76]
[1720401570155,100.0,129.39,129.28,50.76]
[1720401570338,100.0,129.39,129.29,20.17]
[1720401571357,15.0,129.46,129.29,20.17]
[1720401571358,15.0,129.46,129.29,20.0]
[1720401571560,100.0,129.43,129.28,0.17]
[1720401571865,100.0,129.43,129.29,0.17]
[1720401572071,31.1955,129.48,129.29,0.17]
[1720401572245,31.1955,129.48,129.26,6.0765]
[1720401572246,100.0,129.38,129.28,0.17]
[1720401572563,100.0,129.34,129.15,102.3690908]
[1720401572863,15.9896,129.35,129.15,102.3690908]
[1720401572864,100.0,129.33,129.16,5.4195]
[1720401573071,100.0,129.31,129.15,51.6090908]
[1720401573245,100.0,129.31,129.15,57.0289908]
[1720401573566,0.17,129.3,129.15,51.6090908]
[1720401573737,100.0,129.27,129.15,51.6090908]
[1720401574251,20.0,129.34,129.15,51.6090908]
[1720401574252,100.0,129.32,129.19,50.76]
[1720401574452,100.0,129.28,129.19,50.76]
[1720401574662,100.0,129.3,129.19,50.76]
[1720401574875,0.17,129.29,129.19,50.76]
[1720401575055,0.17,129.29,129.15,0.8490908]
[1720401575253,100.0,129.26,129.15,0.8490908]
[1720401575449,100.0,129.23,129.15,0.8490908]
[1720401575673,100.0,129.25,129.15,0.8490908]
[1720401576172,100.0,129.27,129.15,0.8490908]
[1720401576384,0.17,129.26,129.15,0.8490908]
[1720401576553,100.0,129.27,129.15,0.8490908]
[1720401576954,100.17,129.26,129.15,0.8490908]
[1720401577166,100.0,129.26,129.15,0.8490908]
[1720401577381,100.0,129.28,129.17,50.76]
[1720401577685,100.0,129.28,129.18,20.0]
[1720401578057,100.0,129.3,129.18,25.4187]
[1720401578261,100.0,129.34,129.21,50.76]
[1720401578477,100.0,129.34,129.22,20.17]
[1720401578685,100.0,129.34,129.22,48.9269]
[1720401578972,21.3928,129.42,129.22,25.5868]
[1720401579183,100.0,129.35,129.22,20.17]
[1720401579477,100.0,129.36,129.22,20.17]
[1720401580291,100.0,129.35,129.22,43.51]
[1720401580466,100.0,129.35,129.25,50.76]
[1720401580800,100.0,129.35,129.26,20.17]
[1720401580951,100.0,129.36,129.26,20.17]
[1720401581149,100.0,129.35,129.26,20.17]
[1720401581749,6.3928,129.42,129.26,20.0]
[1720401581750,21.3928,129.42,129.26,20.0]
[1720401581983,100.0,129.36,129.23,20.0]
[1720401582278,100.0,129.36,129.24,0.17]
[1720401582448,9.84755015,129.42,129.24,0.17]
[1720401582648,100.0,129.36,129.24,0.17]
[1720401582843,100.17,129.35,129.24,0.17]
[1720401583071,0.17,129.37,129.23,20.0]
[1720401583274,100.0,129.34,129.23,20.0]
[1720401583455,0.17,129.35,129.23,20.0]
[1720401583659,0.17,129.35,129.22,50.76]
[1720401583660,15.17,129.37,129.15,71.3268908]
[1720401583856,20.0,129.36,129.15,58.1469908]
[1720401584188,100.0,129.3,129.16,23.34]
[1720401584362,100.0,129.3,129.15,58.1469908]
[1720401584559,0.17,129.35,129.15,63.5666908]
[1720401584763,0.17,129.35,129.16,5.4196]
[1720401584966,100.0,129.3,129.19,50.76]
[1720401585479,20.17,129.41,129.19,50.76]
[1720401585480,100.0,129.36,129.19,74.1]
[1720401585685,100.0,129.33,129.2,20.0]
[1720401585851,100.0,129.36,129.2,20.0]
[1720401586053,100.0,129.36,129.21,0.17]
[1720401586786,35.0,129.41,129.21,0.17]
[1720401586978,100.0,129.34,129.21,0.17]
[1720401587475,100.0,129.31,129.21,0.17]
[1720401587683,15.0,129.38,129.2,20.0]
[1720401587882,100.0,129.29,129.15,58.1469908]
[1720401588106,15.0,129.36,129.15,58.1469908]
[1720401588383,100.0,129.28,129.15,51.6090908]
[1720401588568,22.8594,129.3,129.15,51.6090908]
[1720401588569,100.0,129.26,129.15,51.6090908]
[1720401589763,0.17,129.27,129.15,51.6090908]
[1720401589965,100.0,129.28,129.15,51.6090908]
[1720401590691,100.0,129.28,129.16,20.0]
[1720401590860,100.0,129.28,129.16,25.4196]
[1720401591060,100.0,129.28,129.17,23.51]
[1720401591267,16.4713,129.36,129.22,50.76]
[1720401591470,16.4713,129.36,129.23,0.17]
[1720401591675,16.4713,129.36,129.21,6.5074]
[1720401592182,100.0,129.32,129.21,6.5074]
[1720401592567,16.4713,129.36,129.21,6.5074]
[1720401592767,100.0,129.33,129.22,0.17]
[1720401592985,16.4713,129.36,129.22,20.17]
[1720401593182,100.0,129.34,129.22,20.17]
[1720401593762,100.0,129.31,129.22,20.17]
[1720401593993,16.4713,129.36,129.22,20.17]
[1720401594178,100.17,129.35,129.22,20.17]
[1720401594359,100.0,129.34,129.22,20.17]
[1720401594687,100.0,129.36,129.23,74.1]
[1720401594861,100.0,129.39,129.27,50.76]
[1720401595066,6.0455,129.46,129.31,50.76]
[1720401595260,100.0,129.46,129.32,26.6774]
[1720401595484,100.0,129.44,129.32,26.6774]
[1720401595696,15.789,129.48,129.32,26.6774]
[1720401595697,100.0,129.46,129.32,26.6774]
[1720401595989,100.0,129.44,129.32,26.6774]
[1720401597492,15.789,129.48,129.32,26.6774]
[1720401597669,100.0,129.43,129.32,26.6774]
[1720401598002,100.0,129.44,129.32,26.6774]
[1720401598172,100.0,129.42,129.32,26.6774]
[1720401598360,100.0,129.4,129.32,26.6774]
[1720401598691,20.0,129.47,129.32,26.6774]
[1720401598692,100.0,129.43,129.32,26.6774]
[1720401600389,100.0,129.41,129.32,26.5074]
[1720401600566,100.17,129.42,129.32,6.5074]
[1720401600763,100.0,129.43,129.32,6.5074]
[1720401601402,100.0,129.37,129.27,56.9639]
[1720401601583,100.0,129.41,129.27,56.9639]
[1720401601776,100.0,129.43,129.31,56.1731]
[1720401602096,100.0,129.41,129.31,50.76]
[1720401602273,100.0,129.41,129.29,50.76]
[1720401602601,15.789,129.48,129.27,6.2039]
[1720401602602,100.0,129.38,129.27,6.2039]
[1720401602898,100.0,129.32,129.23,50.76]
[1720401603067,0.17,129.37,129.23,50.76]
[1720401603068,16.2674,129.37,129.23,50.76]
[1720401603267,100.0,129.33,129.16,29.9606]
[1720401603566,100.0,129.33,129.2,74.1]
[1720401603768,100.0,129.37,129.16,17.29593935]
[1720401603969,100.0,129.37,129.33,5.4124]
[1720401604169,100.0,129.46,129.32,50.76]
[1720401604396,100.0,129.44,129.32,50.76]
[1720401604697,100.0,129.44,129.33,20.0]
[1720401604880,100.0,129.46,129.34,0.17]
[1720401605193,100.0,129.5,129.37,50.76]
[1720401605404,100.0,129.52,129.41,50.76]
[1720401605582,100.0,129.52,129.42,20.17]
[1720401605896,100.0,129.54,129.42,20.17]
[1720401606211,100.0,129.56,129.45,50.76]
[1720401606405,117.4097908,129.61,129.47,5.4065]
[1720401606597,100.0,129.6,129.48,20.17]
[1720401606795,100.0,129.6,129.49,50.76]
[1720401606995,100.0,129.58,129.5,20.17]
[1720401607197,0.8490908,129.61,129.5,20.17]
[1720401607198,100.0,129.6,129.5,20.17]
[1720401607787,100.0,129.58,129.5,20.17]
[1720401608108,100.0,129.6,129.5,20.17]
[1720401608297,100.0,129.58,129.5,20.17]
[1720401608494,0.8490908,129.61,129.5,20.0]
[1720401608694,100.0,129.58,129.5,20.0]
[1720401608893,0.8490908,129.61,129.51,5.5746]
[1720401609211,0.8490908,129.61,129.52,76.1644]
[1720401609409,0.8490908,129.61,129.53,0.17]
[1720401609706,100.8490908,129.61,129.53,0.17]
[1720401609884,0.8490908,129.61,129.53,0.17]
[1720401610287,0.8490908,129.61,129.52,0.17]
[1720401610504,0.8490908,129.61,129.52,5.5745]
[1720401610694,0.8490908,129.61,129.53,20.0]
[1720401611314,0.8490908,129.61,129.56,50.76]
[1720401611482,0.8490908,129.61,129.57,20.0]
[1720401611685,0.8490908,129.61,129.57,25.4023]
[1720401612509,0.8490908,129.61,129.58,0.17]
[1720401612815,100.0,129.71,129.6,50.76]
[1720401613011,17.4097908,129.74,129.58,0.17]
[1720401613012,100.0,129.69,129.61,20.0]
[1720401613306,100.0,129.62,129.49,50.76]
[1720401613611,6.0066,129.66,129.46,50.76]
[1720401613612,100.0,129.57,129.46,50.76]
[1720401613794,100.0,129.6,129.46,50.76]
[1720401613989,15.2762,129.63,129.46,50.76]
[1720401614298,15.2762,129.69,129.5,50.76]
[1720401614495,100.0,129.66,129.5,101.52]
[1720401614694,15.2762,129.69,129.5,101.52]
[1720401614695,0.17,129.68,129.5,101.52]
[1720401615029,100.0,129.6,129.5,50.76]
[1720401615324,30.2762,129.69,129.53,56.1638]
[1720401615325,100.0,129.67,129.53,56.1638]
[1720401615494,100.0,129.67,129.53,50.76]
[1720401615697,100.0,129.69,129.57,62.8194]
[1720401616023,100.0,129.71,129.57,113.5791]
[1720401616316,15.3611,129.76,129.58,23.61583753]
[1720401616488,100.0,129.69,129.58,23.61583753]
[1720401616688,100.0,129.69,129.58,20.17]
[1720401617202,100.0,129.68,129.58,20.17]
[1720401617399,15.3611,129.76,129.58,20.17]
[1720401617400,100.0,129.69,129.58,20.17]
[1720401617792,15.3611,129.76,129.58,20.17]
[1720401617993,100.0,129.68,129.58,20.17]
[1720401618284,100.17,129.67,129.5,112.19533935]
[1720401618506,100.0,129.69,129.54,5.4033]
[1720401618721,100.0,129.69,129.56,50.76]
[1720401618899,100.0,129.69,129.51,9.619]
[1720401618900,100.0,129.69,129.6,50.76]
[1720401619407,100.0,129.72,129.6,50.76]
[1720401619611,15.3611,129.76,129.61,20.17]
[1720401619612,100.0,129.7,129.61,20.17]
[1720401619941,15.3611,129.76,129.61,20.17]
[1720401620091,100.0,129.65,129.52,0.18014708]
[1720401620292,100.0,129.65,129.53,5.4041]
[1720401620509,100.0,129.65,129.55,50.76]
[1720401620893,100.0,129.64,129.55,50.76]
[1720401621090,100.0,129.63,129.52,0.18014708]
[1720401621321,100.0,129.6,129.52,0.18014708]
[1720401621624,100.0,129.59,129.52,0.18014708]
[1720401622021,100.17,129.58,129.52,0.18014708]
[1720401622327,100.0,129.54,129.52,0.18014708]
[1720401622723,15.17,129.6,129.52,0.18014708]
[1720401622724,0.17,129.53,129.52,0.18014708]
[1720401622940,100.17,129.53,129.52,0.18014708]
[1720401623154,100.0,129.62,129.4,50.76]
[1720401623353,100.0,129.55,129.44,50.76]
[1720401623518,100.0,129.56,129.44,50.76]
[1720401623842,100.0,129.55,129.44,50.76]
[1720401624153,100.0,129.52,129.44,50.76]
[1720401624327,100.0,129.52,129.4,50.76]
[1720401624530,30.0855,129.64,129.44,50.76]
[1720401624741,100.0,129.54,129.44,50.76]
[1720401624928,0.17,129.53,129.44,50.76]
[1720401625123,0.17,129.53,129.4,50.76]
[1720401625443,0.17,129.53,129.38,6.465]
[1720401625948,100.0,129.49,129.38,6.465]
[1720401626153,0.17,129.48,129.38,6.465]
[1720401626327,100.0,129.49,129.38,6.465]
[1720401626830,100.17,129.48,129.38,6.465]
[1720401627033,100.0,129.5,129.38,9.91616422]
[1720401627346,100.0,129.57,129.44,56.1678]
[1720401627649,100.0,129.57,129.47,50.76]
[1720401627943,100.0,129.57,129.45,0.17]
[1720401627944,100.0,129.65,129.52,50.76]
[1720401628130,100.0,129.64,129.52,50.76]
[1720401628334,100.0,129.62,129.53,20.0]
[1720401628528,100.0,129.6,129.51,20.0]
[1720401629133,100.0,129.6,129.43,6.5038]
[1720401629134,15.2551,129.6,129.43,6.5038]
[1720401629433,100.0,129.52,129.4,50.76]
[1720401630143,100.0,129.52,129.4,56.1695]
[1720401630347,0.17,129.51,129.4,50.76]
[1720401630528,0.17,129.51,129.38,3.45116422]
[1720401630728,0.17,129.52,129.38,3.45116422]
[1720401631120,100.0,129.52,129.38,3.45116422]
[1720401631325,0.17,129.51,129.38,3.45116422]
[1720401631630,100.0,129.49,129.38,3.45116422]
[1720401631946,100.17,129.48,129.38,3.45116422]
[1720401632134,0.17,129.48,129.38,3.45116422]
[1720401632330,100.0,129.46,129.38,3.45116422]
[1720401632538,0.17,129.45,129.38,3.45116422]
[1720401633246,100.0,129.4,129.38,3.45116422]
[1720401633447,100.0,129.35,129.16,3.4517]
[1720401633629,100.0,129.35,129.19,6.4828]
[1720401633827,100.0,129.31,129.19,11.9007]
[1720401634134,100.0,129.31,129.19,6.4828]
[1720401634454,0.17,129.3,129.19,6.4828]
[1720401634751,100.0,129.29,129.15,51.6090908]
[1720401635253,100.0,129.29,129.15,0.8490908]
[1720401635254,100.0,129.24,129.15,0.8490908]
[1720401635556,0.17,129.29,129.15,0.8490908]
[1720401635557,100.0,129.19,129.15,0.8490908]
[1720401635744,100.17,129.23,129.15,0.8490908]
[1720401635950,100.0,129.19,129.15,0.8490908]
[1720401636626,100.0,129.24,129.15,0.8490908]
[1720401636831,100.0,129.26,129.15,57.0287908]
[1720401637054,100.0,129.31,129.19,50.76]
[1720401637255,100.0,129.33,129.19,50.76]
[1720401637557,100.0,129.33,129.2,5.4179]
[1720401637857,100.0,129.33,129.24,5.4161]
[1720401638062,100.0,129.33,129.23,50.76]
[1720401638063,100.0,129.33,129.25,20.17]
[1720401638355,100.0,129.33,129.27,50.76]
[1720401638557,100.0,129.33,129.28,20.0]
[1720401638733,100.0,129.31,129.22,50.76]
[1720401639055,100.0,129.33,129.23,20.0]
[1720401640163,100.0,129.33,129.23,25.4165]
[1720401640329,100.0,129.33,129.24,0.17]
[1720401640528,103.42682915,129.33,129.23,20.0]
[1720401640931,103.42682915,129.33,129.24,0.17]
[1720401641134,100.0,129.33,129.26,5.4153]
[1720401641356,100.0,129.33,129.27,25.585]
[1720401641645,100.0,129.33,129.27,20.0]
[1720401641829,100.0,129.31,129.27,20.0]
[1720401642037,100.0,129.31,129.22,50.76]
[1720401642038,100.0,129.33,129.23,20.0]
[1720401642238,103.47896355,129.33,129.18,6.569]
[1720401642430,100.0,129.31,129.2,5.4178]
[1720401642635,100.0,129.31,129.19,50.76]
[1720401642866,103.47896355,129.33,129.21,5.4174]
[1720401643030,100.0,129.33,129.23,50.76]
[1720401643229,100.0,129.31,129.23,50.76]
[1720401643756,103.47896355,129.33,129.24,20.0]
[1720401644658,3.47870418,129.32,129.24,20.0]
[1720401644867,3.47870418,129.32,129.18,6.569]
[1720401645031,100.0,129.27,129.18,6.569]
[1720401645236,100.0,129.27,129.15,51.6090908]
[1720401645435,0.17,129.28,129.15,51.6090908]
[1720401645436,100.0,129.25,129.15,51.6090908]
[1720401645655,100.0,129.27,129.15,51.6090908]
[1720401645848,100.0,129.25,129.15,51.6090908]
[1720401646066,0.17,129.24,129.15,51.6090908]
[1720401646377,0.17,129.26,129.15,51.6090908]
[1720401646736,0.17,129.26,129.15,0.8490908]
[1720401646737,100.0,129.24,129.15,0.8490908]
[1720401646942,100.0,129.2,129.15,0.8490908]
[1720401647660,100.0,129.21,129.15,0.8490908]
[1720401647865,0.17,129.2,129.15,0.8490908]
[1720401648053,100.17,129.2,129.15,0.8490908]
[1720401648236,103.6484474,129.2,129.15,0.8490908]
[1720401648878,3.6484474,129.2,129.15,0.8490908]
[1720401649068,100.0,129.17,129.15,0.8490908]
[1720401649360,3.4784474,129.2,129.15,0.8490908]
[1720401649550,0.17,129.19,129.15,0.8490908]
[1720401649736,3.64819318,129.19,129.15,0.8490908]